Cogmind - Beta 16 @@@ ROGUE MODE // 2025.11.18 @ 17:32:37 Player: jes Result: Destroyed by B-75 Beast with Heavy Plasma Cannon Performance ------------- Evolutions (5) 2500 Regions Visited (15) 3000 Robots Destroyed (210) 1050 Value Destroyed (7925) 7925 Prototype IDs (17) 340 Alien Tech Used (0) 0 Bonus (1146) 1146 TOTAL SCORE: 15961 Bonus ------- Entered Garrisons 200 Used RIF Installer 500 Entered DSFs 500 Friendly Fire -54 Cogmind --------- Core Integrity 0/1000 Matter 271/300 Energy 41/100 System Corruption 3% Temperature Cool (12) Movement Core (50) Location -5/Upper Caves Parts ------- > --- POWER (2) -------- (None) > --- PROPULSION (5) --- (None) > --- UTILITY (8) ------ Advanced Heat Sink Targeting Computer Improved Target Analyzer > --- WEAPON (2) ------- Dirty Datajack > --- INVENTORY (5) ---- Heavy Phase Cannon Heavy Phase Cannon Enhanced Gauss Cannon Lance Peak State ------------ > --- POWER ------------ Improved Deuterium Engine Light Neutrino Core > --- PROPULSION ------- Medium Treads Medium Treads Medium Treads Improved Medium Treads Improved Medium Treads > --- UTILITY ---------- Advanced Heat Sink Improved Cooling System Medium Storage Unit Target Analyzer Core Analyzer Precision Energy Filter Hacking Suite System Shield > --- WEAPON ----------- Plasma Rifle Enhanced Coil Gun > --- INVENTORY -------- Light Neutrino Core Medium Treads ECM Suite Variable Charge Gun Heavy Plasma Cannon Heavy Plasma Cannon [Rating: 77] Favorites ----------- Power Nuclear Core Engine Light Angular Momentum Engine Power Core Nuclear Core Reactor Antimatter Reactor Propulsion Light Treads Treads Light Treads Leg Carbon-fiber Leg Wheel Compact Wheel Hover Unit Improved Hover Unit Flight Unit VTOL Module Utility ECM Suite Device ECM Suite Storage Large Storage Unit Processor Target Analyzer Hackware System Shield Weapon Flak Gun Energy Gun Heavy Particle Gun Energy Cannon Heavy Phase Cannon Ballistic Gun Flak Gun Ballistic Cannon Hypervelocity Gauss Cannon Launcher Rocket Launcher Impact Weapon Heavy Hammer Slashing Weapon Axe Piercing Weapon Lance Special Melee Weapon Improved Datajack Build | -11 -10 -10 -10 -8 -8 -8 -8 -7 -6 -6 -6 -6 -5 -5 -5 ------- Run | Yrd Mat Min Sub Mat Gar Mat Sto Fac Fac Was Fac DSF Fac Upp Upp Slots Evolved 10 | . . . . 4 . . . 2 2 . . . 2 . . Power 1 | . . . . . . . . . 1 . . . . . . Propulsion 3 | . . . . 2 . . . . . . . . 1 . . Utility 6 | . . . . 2 . . . 2 1 . . . 1 . . Weapon . | . . . . . . . . . . . . . . . . Parts Attached 228 | 4 17 2 4 51 4 16 9 24 18 6 4 13 42 10 4 Power 30 | . 2 . 1 6 . 1 2 2 3 1 2 1 8 1 . Engine 13 | . 1 . 1 4 . 1 2 . 1 . . 1 1 1 . Core 15 | . 1 . . 2 . . . 2 2 . 1 . 7 . . Reactor 2 | . . . . . . . . . . 1 1 . . . . Propulsion 74 | 2 5 . 1 21 3 7 2 9 4 1 . 6 10 2 1 Treads 49 | 2 2 . 1 14 2 7 2 3 3 1 . 6 5 . 1 Leg 16 | . 3 . . 2 1 . . 5 1 . . . 3 1 . Wheel 2 | . . . . . . . . 1 . . . . 1 . . Hover 1 | . . . . 1 . . . . . . . . . . . Flight 6 | . . . . 4 . . . . . . . . 1 1 . Utility 58 | . 5 . . 9 1 3 3 8 8 2 2 1 14 1 1 Device 39 | . 2 . . 5 1 2 2 6 6 1 2 . 10 1 1 Storage 6 | . 2 . . 3 . . . . . . . . 1 . . Processor 8 | . 1 . . 1 . . . 1 1 . . 1 3 . . Hackware 5 | . . . . . . 1 1 1 1 1 . . . . . Protection . | . . . . . . . . . . . . . . . . Artifact . | . . . . . . . . . . . . . . . . Weapon 66 | 2 5 2 2 15 . 5 2 5 3 2 . 5 10 6 2 Energy Gun 21 | 1 2 1 . 4 . 1 . 3 2 1 . 1 4 1 . Energy Cannon 13 | . . . . 3 . 1 . 1 . 1 . 1 2 4 . Ballistic Gun 18 | 1 2 1 1 5 . 3 . 1 1 . . . 3 . . Ballistic Cannon 6 | . . . . 1 . . . . . . . 3 1 1 . Launcher 2 | . . . 1 . . . 1 . . . . . . . . Special Weapon . | . . . . . . . . . . . . . . . . Impact Weapon 2 | . 1 . . 1 . . . . . . . . . . . Slashing Weapon 1 | . . . . . . . 1 . . . . . . . . Piercing Weapon 1 | . . . . . . . . . . . . . . . 1 Special Melee Weapon 2 | . . . . 1 . . . . . . . . . . 1 Unidentified Prototypes 16 | . . . . 7 . 1 2 . 2 . . . 4 . . Parts Lost 70 | . . . 4 9 1 1 . 9 1 6 . 2 17 10 10 Power 12 | . . . 1 2 . . . . . 1 . 1 3 2 2 Propulsion 28 | . . . 1 5 1 . . 6 . 1 . . 6 4 4 Utility 18 | . . . . 1 . 1 . 2 1 2 . 1 4 2 4 Weapon 12 | . . . 2 1 . . . 1 . 2 . . 4 2 . Highest Loss Streak 9 | . . . 3 3 1 1 . 3 1 6 . 1 6 9 6 To Critical Strikes 1 | . . . . . . . . . . 1 . . . . . Average Backups 10 | 2 7 9 8 9 12 14 14 13 14 11 . 3 6 8 9 Power 1 | 1 1 1 . . 2 2 2 2 1 2 . . . . . Propulsion . | . . 1 . 1 . 1 1 . . . . 2 . . . Utility 2 | . 1 3 3 1 3 3 3 3 3 4 . . . 1 . Weapon 5 | . 3 4 4 4 5 6 6 7 7 4 . 1 3 6 6 Tool/Special . | . . . . . . . . . . . . . . . . Unused Backups 35 | 2 2 1 . 11 2 3 1 3 1 2 . . 1 1 5 Power 5 | . . . . 1 2 1 . . . 1 . . . . . Propulsion 4 | 2 1 . . . . 1 . . . . . . . . . Utility 7 | . . . . 3 . . . 3 . 1 . . . . . Weapon 18 | . 1 1 . 7 . 1 1 . 1 . . . 1 1 4 Tool/Special 1 | . . . . . . . . . . . . . . . 1 Average Slot Usage (%) 94 | . 92 100 98 94 99 99 100 98 99 71 69 94 92 90 77 Engine 4 | . 2 . 8 7 . . 5 3 1 3 . 2 2 6 9 Core 5 | . 9 14 5 . 9 9 3 3 11 1 6 6 7 3 . Treads 22 | . 13 28 28 28 30 36 36 19 21 15 6 24 16 3 2 Leg 4 | . 13 . . 1 4 . . 9 4 . . . 4 7 4 Device 17 | . 7 . . 17 18 13 18 22 24 12 17 15 14 24 23 Storage 7 | . 12 14 14 9 9 9 9 7 6 4 . . 3 5 4 Processor 8 | . 3 14 14 9 9 5 . 3 6 6 6 9 14 13 11 Hackware 4 | . . . . . . 7 9 10 8 14 20 20 9 1 . Energy Gun 7 | . 14 14 . 7 16 8 8 6 6 8 5 6 2 1 . Energy Cannon 1 | . . . . 1 . . . . . . . . 3 6 9 Ballistic Gun 6 | . 13 14 16 8 . 7 6 6 5 . . . 2 . . Peak Build Rating 77 | 4 11 11 11 35 35 35 35 40 64 72 50 63 77 73 65 Average Rating 37 | 3 8 10 8 24 31 32 31 37 57 50 49 59 65 64 59 On Entrance 33 | . 4 10 11 7 35 31 35 32 39 57 26 50 60 72 64 Avg Prop Armor Cover (%) 11 | 28 23 . . 12 10 11 7 9 4 40 . . 11 9 10 Naked Turns . | . . . . . . . . . . . . . . . . Heaviest Build 67 | 3 20 19 20 40 39 39 37 42 53 58 36 42 67 56 53 Greatest Support 146 | 20 40 40 40 96 96 60 88 88 106 128 70 130 146 63 28 Greatest Overweight (x) 4 | . 3 . . 1 . . . 2 . . . . 4 3 3 Average Overweight (x) . | . . . . . . . . . . . . . . 2 2 Largest Inventory Capacity 15 | 5 10 10 10 15 15 15 15 15 15 15 5 5 10 10 10 Average Capacity 11 | 5 8 10 10 10 15 15 15 15 15 12 5 5 8 10 9 Most Carried 15 | 5 10 10 10 12 15 15 15 15 15 15 4 5 10 10 10 Average Carried 10 | 3 7 9 7 9 12 14 14 13 14 11 . 4 5 7 9 Final Capacity 15 | 5 10 10 10 15 15 15 15 15 15 5 5 5 10 10 5 Final Carried 15 | 4 9 10 6 11 12 15 15 14 14 5 . 4 10 8 4 Class Distribution -------------------- 74% | Scavenger-Mutant 17% | Mutant 6% | Hacker-Mutant Dominant Class ---------------- Scavenger-Mutant | -10/Materials Scavenger-Mutant | -10/Mines Scavenger-Mutant | -10/Subcaves Scavenger-Mutant | -8/Materials Scavenger-Mutant | -8/Garrison Scavenger-Mutant | -8/Materials Scavenger-Mutant | -8/Storage Scavenger-Mutant | -7/Factory Scavenger-Mutant | -6/Factory Scavenger-Mutant | -6/Waste Hacker-Mutant | -6/Factory Hacker-Mutant | -6/DSF Scavenger-Mutant | -5/Factory Scavenger-Mutant | -5/Upper Caves Scavenger-Mutant | -5/Upper Caves Resources | -11 -10 -10 -10 -8 -8 -8 -8 -7 -6 -6 -6 -6 -5 -5 -5 ----------- Run | Yrd Mat Min Sub Mat Gar Mat Sto Fac Fac Was Fac DSF Fac Upp Upp Matter Collected 6142 | 194 342 57 50 1435 116 530 394 643 585 119 . 396 791 419 71 Remotely . | . . . . . . . . . . . . . . . . Salvage Created 9438 | . 548 158 106 2144 154 649 579 928 819 639 . 281 1596 758 79 Parts 464 | . 33 8 3 125 8 40 28 59 35 13 . 18 68 23 3 Haulers Intercepted 11 | . 2 . . 5 . 2 . . 1 . . . 1 . . Recyclers Shooed 15 | . 1 . . 1 . 3 . 1 2 . . . 7 . . Parts Field Recycled . | . . . . . . . . . . . . . . . . Retrieved Matter . | . . . . . . . . . . . . . . . . Parts Self-Destructed 23 | . . . . . . . . . . . . . . 23 . Prevented 5 | . . . . . . . . . . . . . . 5 . Parts Restored . | . . . . . . . . . . . . . . . . Kills | -11 -10 -10 -10 -8 -8 -8 -8 -7 -6 -6 -6 -6 -5 -5 -5 ------- Run | Yrd Mat Min Sub Mat Gar Mat Sto Fac Fac Was Fac DSF Fac Upp Upp Combat Hostiles Destroyed 161 | . 9 5 6 34 4 11 11 19 11 2 . 8 24 16 1 Melee 1 | . . . . . . 1 . . . . . . . . . Guns 114 | . 9 5 2 26 2 10 11 16 11 2 . 5 12 3 . Cannons 39 | . . . . 8 2 . . 3 . . . 3 12 11 . AOE 4 | . . . 4 . . . . . . . . . . . . Classes Destroyed 17 | . 7 . 1 7 . . . 1 . 1 . . . . . Worker 7 | . 1 1 . 2 . 1 . 2 . . . . . . . Builder 6 | . . . . 1 . . . 3 . . . . 2 . . Tunneler 3 | . . . . 1 . . . 2 . . . . . . . Hauler 11 | . 2 . . 5 . 2 . . 1 . . . 1 . . Recycler 7 | . 1 . . 2 . 1 . . 1 . . . 2 . . Operator 4 | . 1 . . 1 . . 1 . 1 . . . . . . Watcher 11 | . 2 . . 5 . 2 . 2 . . . . . . . Swarmer 32 | . 3 3 . 6 . . . 3 . . . 4 8 5 . Grunt 65 | . 6 2 . 12 3 5 8 5 6 . . . 8 10 . Brawler 1 | . . . . 1 . . . . . . . . . . . Sentry 30 | . . . . 9 1 6 3 5 1 . . . 3 1 1 Specialist 6 | . . . . 2 . . . . . . . 4 . . . Hunter 10 | . . . . 3 . . . 2 2 . . . 3 . . Programmer 8 | . . . . . . . . 4 2 . . . 2 . . Heavy 1 | . . . . 1 . . . . . . . . . . . Compactor 2 | . . . . . . . . . . 2 . . . . . Subdweller 6 | . . . 6 . . . . . . . . . . . . Best Kill Streak 11 | . 6 3 3 7 3 3 4 7 2 1 . 4 7 11 1 Combat Bots Only 11 | . 5 3 3 6 3 3 4 3 2 1 . 4 7 11 1 Max Kills in Single Turn 3 | . 1 1 1 2 1 1 1 3 1 1 . 1 2 1 1 Gunslinging . | . . . . . . . . . . . . . . . . Exploded 1 | . . . 1 . . . . . . . . . . . . Melee 1 | . . . . . . 1 . . . . . . . . . Uniques/NPCs Destroyed . | . . . . . . . . . . . . . . . . Combat | -11 -10 -10 -10 -8 -8 -8 -8 -7 -6 -6 -6 -6 -5 -5 -5 -------- Run | Yrd Mat Min Sub Mat Gar Mat Sto Fac Fac Was Fac DSF Fac Upp Upp Hostile Shots Fired 1275 | . 53 17 28 243 20 35 36 271 78 13 . 71 254 117 39 Missed 387 | . 8 2 11 86 8 7 8 96 21 1 . 21 72 34 12 Hits 888 | . 45 15 17 157 12 28 28 175 57 12 . 50 182 83 27 Melee 12 | . . . . . . . . . . 12 . . . . . Projectile 876 | . 45 15 17 157 12 28 28 175 57 . . 50 182 83 27 AOE 6 | . . . 5 . . . . . . . . . 1 . . Critical Strikes 36 | . . 1 . 9 . 1 . 2 3 8 . 1 9 1 1 Damage Taken 14496 | . 526 196 560 2460 187 451 427 1747 877 597 . 998 3344 1396 730 Core 2615 | . 94 67 27 438 15 29 43 164 113 275 . 324 554 206 266 Absorbed by Shields . | . . . . . . . . . . . . . . . . Regen/Repaired (Parts) 338 | . . . . . . 16 . 89 130 . . . 103 . . Core Remaining (%) 44 | 100 . . 24 . . . 4 76 . . . 16 . . . Volleys Fired 639 | . 54 17 20 131 33 44 29 65 52 22 . 29 96 35 12 Largest 2 | . 2 2 2 2 2 2 2 2 2 2 . 2 2 2 2 Hottest 180 | . 85 85 53 92 92 89 89 108 108 145 . 143 165 173 180 Shots Fired 1180 | . 108 24 25 252 42 85 59 129 100 36 . 46 179 69 26 Gun 940 | . 108 24 8 204 35 84 59 117 100 35 . 25 113 28 . Cannon 223 | . . . . 48 7 1 . 12 . 1 . 21 66 41 26 Launcher 17 | . . . 17 . . . . . . . . . . . . Special . | . . . . . . . . . . . . . . . . Kinetic 526 | . 54 17 8 126 7 42 30 65 48 4 . 20 75 30 . Thermal 602 | . 54 7 . 116 10 43 29 64 52 32 . 26 104 39 26 Explosive 17 | . . . 17 . . . . . . . . . . . . Electromagnetic 35 | . . . . 10 25 . . . . . . . . . . Robot Hit Streak 23 | . 12 6 3 23 18 15 9 12 11 11 . 13 15 14 8 Robot Miss Streak 14 | . 6 1 2 4 1 8 5 14 6 5 . 5 9 3 2 Penetration Max 1 | . . . . . . . . . . . . . 1 1 . Secondary Targets 13 | . 2 . . 3 . 1 1 4 . . . . 2 . . Max Gunslinging Chain 1 | . 1 . . 1 . 1 1 1 . . . . 1 . . Shots Hit Robots 877 | . 69 17 8 191 15 70 44 113 82 27 . 36 123 48 34 Core Hits 532 | . 28 10 15 97 12 58 23 97 72 10 . 21 58 26 5 Critical Kills 13 | . 1 . . 1 . 1 . . 1 1 . . 1 7 . Critical Parts Destroyed 16 | . . . . . . . . . 4 . . 1 3 8 . Critical Strikes 50 | . 1 . . 2 1 5 1 1 5 2 . 2 8 22 . Burn 18 | . . . . 1 1 4 1 1 . . . 1 4 5 . Meltdown 1 | . . . . . . . . . . . . . 1 . . Destroy 28 | . 1 . . 1 . . . . 5 2 . 1 3 15 . Blast 2 | . . . . . . . . . . . . . . 2 . Smash 1 | . . . . . . 1 . . . . . . . . . Melee Attacks 130 | . 1 . . 11 . 10 65 16 11 . . . . . 16 Impact 17 | . 1 . . 10 . 6 . . . . . . . . . Slashing 71 | . . . . . . . 57 6 8 . . . . . . Piercing 16 | . . . . . . . . . . . . . . . 16 Sneak Attacks 30 | . . . . 2 . 3 8 10 3 . . . . . 4 Combat Hostiles . | . . . . . . . . . . . . . . . . Follow-up Attacks . | . . . . . . . . . . . . . . . . Damage Inflicted 18783 | . 804 154 1004 3553 317 1442 671 2182 1753 812 . 755 3477 1110 749 Guns 13028 | . 804 154 41 2587 169 1310 671 1987 1753 785 . 387 1845 535 . Cannons 4535 | . . . . 912 148 . . 195 . 27 . 368 1632 575 678 Explosions 963 | . . . 963 . . . . . . . . . . . . Melee 257 | . . . . 54 . 132 . . . . . . . . 71 Ramming . | . . . . . . . . . . . . . . . . Kinetic 7197 | . 389 107 41 1532 148 761 291 1043 772 109 . 337 1252 415 . Thermal 10197 | . 415 47 . 1798 169 549 380 1139 981 703 . 418 2225 695 678 Explosive 963 | . . . 963 . . . . . . . . . . . . Electromagnetic 169 | . . . . 169 . . . . . . . . . . . Impact 186 | . . . . 54 . 132 . . . . . . . . . Slashing . | . . . . . . . . . . . . . . . . Piercing 71 | . . . . . . . . . . . . . . . 71 Highest Corruption 20 | . . . . 3 3 3 3 1 2 20 20 20 3 3 3 Average Corruption 3 | . . . . 2 3 3 3 1 1 8 20 20 2 3 3 Corruption Purged 4 | . . . . . . . . . . 4 . . . . . Corruption Blocked . | . . . . . . . . . . . . . . . . Effects 157 | . . . . 4 16 22 18 5 4 10 6 15 23 16 18 Message Errors 35 | . . . . 2 3 5 7 2 1 1 . 2 7 3 2 Matter Fused 41 | . . . . . 4 8 2 . 3 1 1 6 5 5 6 Heat Flow Errors 15 | . . . . . 1 1 2 2 . 1 2 . 3 2 1 Energy Discharges 15 | . . . . . 2 2 2 . . 1 . 2 2 2 2 Parts Rejected 3 | . . . . . . . . . . 1 . 1 1 . . Parts Fused 1 | . . . . . . . 1 . . . . . . . . Data Loss (minor) 18 | . . . . 1 3 3 1 . . 1 3 1 1 1 3 Data Loss (major) 4 | . . . . . 1 . 2 . . . . . . 1 . Misfires 12 | . . . . 1 2 2 1 . . 1 . 1 1 1 2 Alerts 4 | . . . . . . . . . . . . . 1 1 2 Misdirections 2 | . . . . . . . . . . 2 . . . . . Weapon Failures 7 | . . . . . . 1 . 1 . 1 . 2 2 . . Overload Shots . | . . . . . . . . . . . . . . . . Overflow Damage 25 | . . . . 14 . . . . . . . . 11 . . Projectiles 11 | . . . . . . . . . . . . . 11 . . Explosions . | . . . . . . . . . . . . . . . . Melee 14 | . . . . 14 . . . . . . . . . . . Knockbacks 45 | . . . . 22 4 . . . . . . 11 2 6 . Impact . | . . . . . . . . . . . . . . . . Kinetic 39 | . . . . 18 3 . . . . . . 11 2 5 . Secondary 6 | . . . . 4 1 . . . . . . . . 1 . Self-Inflicted Damage . | . . . . . . . . . . . . . . . . Shots . | . . . . . . . . . . . . . . . . Rammed . | . . . . . . . . . . . . . . . . Targets Rammed . | . . . . . . . . . . . . . . . . Kicked . | . . . . . . . . . . . . . . . . Crushed . | . . . . . . . . . . . . . . . . Highest Temperature 369 | . 186 219 . 224 168 236 220 157 45 212 240 . 369 92 280 Average Temperature 72 | . 57 113 . 62 34 83 33 28 16 41 103 . 138 43 124 Received Heat Transfer 3826 | . 189 114 63 846 99 234 225 387 249 . . 135 612 264 409 Effects 11 | . . . . 3 . . . . . . . . 7 . 1 Shutdowns 3 | . . . . . . . . . . . . . 3 . . Energy Bleed 3 | . . . . . . . . . . . . . 2 . 1 Interference 5 | . . . . 3 . . . . . . . . 2 . . Siege Activations . | . . . . . . . . . . . . . . . . Martial Activations . | . . . . . . . . . . . . . . . . Shielding Activations . | . . . . . . . . . . . . . . . . Robots Disrupted . | . . . . . . . . . . . . . . . . Combat Hostiles . | . . . . . . . . . . . . . . . . Robots Corrupted . | . . . . . . . . . . . . . . . . Combat Hostiles . | . . . . . . . . . . . . . . . . Parts Fried 3 | . . . . 3 . . . . . . . . . . . Impact Corruptions 1 | . . . . 1 . . . . . . . . . . . Robots Melted 4 | . . . . . . . . . . . . . 1 2 1 Combat Hostiles 3 | . . . . . . . . . . . . . . 2 1 Parts Melted 15 | . . . . 5 . . 1 1 2 . . . 2 4 . Heat Transferred 19715 | . 968 111 . 3589 407 1369 777 2300 1634 1036 . 790 4081 1950 703 Parts Sabotaged . | . . . . . . . . . . . . . . . . Parts Stolen . | . . . . . . . . . . . . . . . . Parts Stripped . | . . . . . . . . . . . . . . . . Power Chain Reactions . | . . . . . . . . . . . . . . . . Alert | -11 -10 -10 -10 -8 -8 -8 -8 -7 -6 -6 -6 -6 -5 -5 -5 ------- Run | Yrd Mat Min Sub Mat Gar Mat Sto Fac Fac Was Fac DSF Fac Upp Upp Maximum Alert Level 1 | . . . . 1 1 . . . . . . . 1 . . Low Security (%) 93 | 100 100 100 . 97 8 100 100 100 100 100 100 100 83 . . Level 1 6 | . . . . 2 92 . . . . . . . 16 . . Level 2 . | . . . . . . . . . . . . . . . . Level 3 . | . . . . . . . . . . . . . . . . Level 4 . | . . . . . . . . . . . . . . . . Level 5 . | . . . . . . . . . . . . . . . . High Security . | . . . . . . . . . . . . . . . . Max Security . | . . . . . . . . . . . . . . . . Peak Influence 336 | . 133 69 . 292 336 198 133 133 113 14 14 180 225 . . Initial 187 | . . . . . 187 163 50 49 41 14 . 9 94 . . Average 78 | . 41 14 . 83 297 127 35 61 30 1 . 69 128 . . Influence Increases 4622 | . 334 125 . 1065 159 366 325 595 366 . 14 190 718 345 20 Destroy 0b10 Robot/C 3060 | . 180 100 . 680 80 220 220 380 220 . . 160 480 320 20 Destroy 0b10 Robot/NC 245 | . 35 5 . 85 . 30 5 45 15 . . . 25 . . Destroy Leader 734 | . 48 20 . 220 . 78 50 124 52 . . 30 102 10 . Successful Hack 147 | . 25 . . 22 14 4 20 24 14 . 14 . 10 . . Disable Machine 120 | . . . . 30 . . 30 . 30 . . . 30 . . Anti-Garrison Action 50 | . . . . . 50 . . . . . . . . . . Destroy Structure 101 | . 1 . . 13 15 4 . 7 5 . . . 56 . . Partial Spotted 60 | . 30 . . . . 15 . 15 . . . . . . . Lose Combat Pursuer 105 | . 15 . . 15 . 15 . . 30 . . . 15 15 . Influence Decreases 4622 | . 334 104 21 776 112 581 336 620 409 42 . 24 749 494 20 Entered New Map 638 | . . . 12 . 102 173 71 61 44 28 . 5 86 56 . Time Decay 3234 | . 334 104 9 488 . 398 265 486 315 14 . . 463 338 20 Lost Part 452 | . . . . 70 10 10 . 73 . . . 19 170 100 . Lost Ally 80 | . . . . . . . . . 50 . . . 30 . . Purge Threat 218 | . . . . 218 . . . . . . . . . . . Squads Dispatched 27 | . 1 . . 7 . . 1 6 4 . . 2 6 . . Investigation 3 | . . . . 2 . . . . . . . . 1 . . Extermination 9 | . . . . . . . . 4 2 . . . 3 . . Reinforcement 14 | . 1 . . 4 . . 1 2 2 . . 2 2 . . Assault . | . . . . . . . . . . . . . . . . Garrison 1 | . . . . 1 . . . . . . . . . . . Intercept . | . . . . . . . . . . . . . . . . Searches Triggered . | . . . . . . . . . . . . . . . . Construction Impeded 1 | . . . . 1 . . . . . . . . . . . Haulers Reinforced 3 | . . . . . . . . 1 1 . . . 1 . . Active Scanning Responses . | . . . . . . . . . . . . . . . . Cargo Convoy Interrupts . | . . . . . . . . . . . . . . . . Stealth | -11 -10 -10 -10 -8 -8 -8 -8 -7 -6 -6 -6 -6 -5 -5 -5 --------- Run | Yrd Mat Min Sub Mat Gar Mat Sto Fac Fac Was Fac DSF Fac Upp Upp Distress Signals 10 | . 1 . . 4 . 3 . 1 . . . 1 . . . Communications Jammed 3 | . . . . . . . . 3 . . . . . . . Distress Signals 2 | . . . . . . . . 2 . . . . . . . Times Spotted 255 | . 14 5 6 66 4 19 13 30 26 6 . 12 31 20 3 Peak Tracking Total 13 | . 5 3 3 7 3 3 4 4 3 4 . 4 8 13 1 Tactical Retreats 33 | . 1 . . 10 . 3 . 5 6 . . 2 5 1 . ECM-based Alert Blocks 45 | . . . . 17 . 2 . 7 9 . . 2 8 . . Traps | -11 -10 -10 -10 -8 -8 -8 -8 -7 -6 -6 -6 -6 -5 -5 -5 ------- Run | Yrd Mat Min Sub Mat Gar Mat Sto Fac Fac Was Fac DSF Fac Upp Upp Traps Triggered 7 | . 2 . . 3 . . . . 1 . . . 1 . . Indirectly . | . . . . . . . . . . . . . . . . Trap Hack Attempts 38 | . . . . . . . 28 10 . . . . . . . Triggered . | . . . . . . . . . . . . . . . . Disarmed 4 | . . . . . . . 2 2 . . . . . . . Reprogrammed . | . . . . . . . . . . . . . . . . Reused . | . . . . . . . . . . . . . . . . Traps Extracted . | . . . . . . . . . . . . . . . . Installed . | . . . . . . . . . . . . . . . . Triggered . | . . . . . . . . . . . . . . . . Machines | -11 -10 -10 -10 -8 -8 -8 -8 -7 -6 -6 -6 -6 -5 -5 -5 ---------- Run | Yrd Mat Min Sub Mat Gar Mat Sto Fac Fac Was Fac DSF Fac Upp Upp Machines Disabled 11 | . . . . 2 1 . 2 . 2 . . . 2 2 . Max in Single Turn 1 | . . . . 1 1 . 1 . 1 . . . 1 1 . Garrison Access 3 | . . . . . . . . 2 . . . . 1 . . Garrison Relay 1 | . . . . . 1 . . . . . . . . . . Machines Repaired . | . . . . . . . . . . . . . . . . Machines Dismantled . | . . . . . . . . . . . . . . . . Machines Sabotaged . | . . . . . . . . . . . . . . . . Overloaded Fab Kills . | . . . . . . . . . . . . . . . . Hacking | -11 -10 -10 -10 -8 -8 -8 -8 -7 -6 -6 -6 -6 -5 -5 -5 --------- Run | Yrd Mat Min Sub Mat Gar Mat Sto Fac Fac Was Fac DSF Fac Upp Upp Machines Accessed 45 | . 7 . . 11 1 3 9 6 2 . 2 . 2 1 1 Terminals 26 | . 5 . . 7 1 . 8 1 1 . 2 . . 1 . Fabricators . | . . . . . . . . . . . . . . . . Repair Stations 4 | . . . . . . 1 . 1 1 . . . 1 . . Recycling Units 8 | . 2 . . 1 . 2 1 2 . . . . . . . Scanalyzers 2 | . . . . 2 . . . . . . . . . . . Garrison Access 4 | . . . . 1 . . . 2 . . . . 1 . . Total Hacks 114 | . 16 . . 37 2 7 20 14 6 . 4 . 4 3 1 Successful 49 | . 5 . . 14 1 5 7 5 3 . 2 . 3 3 1 Failed 64 | . 11 . . 22 1 2 13 9 3 . 2 . 1 . . Catastrophic 15 | . 4 . . 5 . 1 3 2 . . . . . . . Database Lockouts 1 | . . . . 1 . . . . . . . . . . . Manual 39 | . 7 . . 16 . 3 6 7 . . . . . . . Terminals 67 | . 12 . . 22 2 . 17 3 4 . 4 . . 3 . Fabricators . | . . . . . . . . . . . . . . . . Repair Stations 9 | . . . . . . 2 . 2 2 . . . 3 . . Recycling Units 25 | . 4 . . 6 . 5 3 7 . . . . . . . Scanalyzers 6 | . . . . 6 . . . . . . . . . . . Garrison Access 6 | . . . . 3 . . . 2 . . . . 1 . . Terminal Hacks 23 | . 3 . . 7 1 . 5 . 1 . 2 . . 3 1 Record 3 | . . . . . . . . . . . . . . 3 . Part Schematic 1 | . . . . . . . 1 . . . . . . . . Prototype ID Bank 1 | . . . . . . . 1 . . . . . . . . Open Door 3 | . . . . . . . 2 . . . . . . . 1 Open DSF 1 | . . . . . . . . . . . 1 . . . . Terminal Index 2 | . . . . 1 . . . . . . 1 . . . . Alert Level 1 | . 1 . . . . . . . . . . . . . . Unreport Threat 3 | . . . . 3 . . . . . . . . . . . Registered Components 2 | . 1 . . . . . . . 1 . . . . . . Zone Layout 5 | . 1 . . 3 . . 1 . . . . . . . . Garrison Registry 1 | . . . . . 1 . . . . . . . . . . Fabricator Hacks . | . . . . . . . . . . . . . . . . Repair Station Hacks 8 | . . . . . . 2 . 2 2 . . . 2 . . Scan Component 4 | . . . . . . 1 . 1 1 . . . 1 . . Repair 4 | . . . . . . 1 . 1 1 . . . 1 . . Recycling Unit Hacks 1 | . . . . . . 1 . . . . . . . . . Retrieve Components 1 | . . . . . . 1 . . . . . . . . . Scanalyzer 4 | . . . . 4 . . . . . . . . . . . Insert Component 2 | . . . . 2 . . . . . . . . . . . Analyze 1 | . . . . 1 . . . . . . . . . . . Retrieve Study 1 | . . . . 1 . . . . . . . . . . . Garrison Access Hacks 4 | . . . . 1 . . . 2 . . . . 1 . . Unlock Access 1 | . . . . 1 . . . . . . . . . . . Seal Access 3 | . . . . . . . . 2 . . . . 1 . . Unauthorized Hacks 9 | . 2 . . 2 . 2 2 1 . . . . . . . Terminals 1 | . 1 . . . . . . . . . . . . . . Assimilate 1 | . 1 . . . . . . . . . . . . . . Fabricators . | . . . . . . . . . . . . . . . . Repair Stations . | . . . . . . . . . . . . . . . . Recycling Units 8 | . 1 . . 2 . 2 2 1 . . . . . . . Reject 3 | . . . . 1 . 1 1 . . . . . . . . Recyclers 5 | . 1 . . 1 . 1 1 1 . . . . . . . Scanalyzers . | . . . . . . . . . . . . . . . . Garrison Access . | . . . . . . . . . . . . . . . . Data Cores Recovered 2 | . . . . 1 . . 1 . . . . . . . . Used 1 | . . . . . . . 1 . . . . . . . . Hacking Detections 34 | . 6 . . 10 1 2 8 3 1 . 1 . 1 1 . Full Trace Events 2 | . 1 . . 1 . . . . . . . . . . . Feedback Events . | . . . . . . . . . . . . . . . . Feedback Blocked . | . . . . . . . . . . . . . . . . Robot Schematics Acquired . | . . . . . . . . . . . . . . . . Robots Built . | . . . . . . . . . . . . . . . . Authchips . | . . . . . . . . . . . . . . . . Time . | . . . . . . . . . . . . . . . . Total Robot Build Rating . | . . . . . . . . . . . . . . . . Part Schematics Acquired 2 | . . . . 1 . . 1 . . . . . . . . Parts Built . | . . . . . . . . . . . . . . . . Authchips . | . . . . . . . . . . . . . . . . Time . | . . . . . . . . . . . . . . . . Total Part Build Rating . | . . . . . . . . . . . . . . . . Part Studies Acquired 1 | . . . . 1 . . . . . . . . . . . Parts Repaired 4 | . . . . . . 1 . 1 1 . . . 1 . . Time 111 | . . . . . . 38 . 26 22 . . . 25 . . Parts Recycled . | . . . . . . . . . . . . . . . . Recycled Matter . | . . . . . . . . . . . . . . . . Retrieved Matter . | . . . . . . . . . . . . . . . . Retrieved Components 10 | . . . . . . 10 . . . . . . . . . Parts Scanalyzed 1 | . . . . 1 . . . . . . . . . . . Part Schematics Acquired 1 | . . . . 1 . . . . . . . . . . . Parts Damaged . | . . . . . . . . . . . . . . . . Bothacking | -11 -10 -10 -10 -8 -8 -8 -8 -7 -6 -6 -6 -6 -5 -5 -5 ------------ Run | Yrd Mat Min Sub Mat Gar Mat Sto Fac Fac Was Fac DSF Fac Upp Upp Used RIF Installer 1 | . . . . . 1 . . . . . . . . . . Robots Hacked 13 | . . . . 1 . 2 5 3 2 . . . . . . Non-combat 12 | . . . . 1 . 1 5 3 2 . . . . . . Combat 1 | . . . . . . 1 . . . . . . . . . Robot Hacks Applied 22 | . . . . 1 . 3 6 9 3 . . . . . . parse_system 1 | . . . . . . 1 . . . . . . . . . no_distress 5 | . . . . . . . 1 3 1 . . . . . . generate_echo 1 | . . . . . . . 1 . . . . . . . . find_fabricator 2 | . . . . . . . . 1 1 . . . . . . find_dsf 1 | . . . . . . . . 1 . . . . . . . drop_inventory 1 | . . . . . . . 1 . . . . . . . . find_recycling 4 | . . . . 1 . . 1 1 1 . . . . . . check_alert 1 | . . . . . . . . 1 . . . . . . . find_terminals 1 | . . . . . . . . 1 . . . . . . . reprogram_traps 2 | . . . . . . . 1 1 . . . . . . . find_garrison 1 | . . . . . . 1 . . . . . . . . . overwrite_iff 1 | . . . . . . 1 . . . . . . . . . streamctrl_low 1 | . . . . . . . 1 . . . . . . . . Relay Couplers Released 5 | . . . . . 5 . . . . . . . . . . Machine Destruction 5 | . . . . . 5 . . . . . . . . . . Attached 2 | . . . . . . 1 1 . . . . . . . . Fabnet Peak Effective % . | . . . . . . . . . . . . . . . . Robots Rewired . | . . . . . . . . . . . . . . . . Allies Hacked . | . . . . . . . . . . . . . . . . Hacks Repelled . | . . . . . . . . . . . . . . . . Allies | -11 -10 -10 -10 -8 -8 -8 -8 -7 -6 -6 -6 -6 -5 -5 -5 -------- Run | Yrd Mat Min Sub Mat Gar Mat Sto Fac Fac Was Fac DSF Fac Upp Upp Total Allies 3 | . . . . . . 1 1 . . . . . . . 1 Largest Group 1 | . . . . . . 1 1 . . . . . . . 1 Highest-Rated Group 72 | . . . . . . 15 8 . . . . . . . 72 Highest-Rated Ally 72 | . . . . . . 15 8 . . . . . . . 72 Total Orders 7 | . . . . . . . 2 . 4 . . . 1 . . ROAM 1 | . . . . . . . 1 . . . . . . . . DROP 1 | . . . . . . . 1 . . . . . . . . EXPLORE 4 | . . . . . . . . . 3 . . . 1 . . RETURN 1 | . . . . . . . . . 1 . . . . . . Ally Attacks 1 | . . . . . . 1 . . . . . . . . . Total Damage 28 | . . . . . . 28 . . . . . . . . . Kills . | . . . . . . . . . . . . . . . . Allies Corrupted 1 | . . . . . . . . . . . . . 1 . . Allies Melted . | . . . . . . . . . . . . . . . . Intel | -11 -10 -10 -10 -8 -8 -8 -8 -7 -6 -6 -6 -6 -5 -5 -5 ------- Run | Yrd Mat Min Sub Mat Gar Mat Sto Fac Fac Was Fac DSF Fac Upp Upp Active Infowar (turns) 13224 | . 756 743 399 3666 675 197 578 2238 1495 15 135 257 999 815 256 Sensors 1119 | . . . . . . . 52 246 588 15 135 83 . . . IFF 7 | . . . . . . . . . 7 . . . . . . Structural 1087 | . 345 . . 742 . . . . . . . . . . . Seismic 3858 | . . . . . . . . 1727 1101 . . . 45 729 256 T.N.C. 3243 | . 256 743 399 1845 . . . . . . . . . . . Jamming 209 | . . . . . . . . 209 . . . . . . . ECM 9239 | . 155 . . 3247 675 197 526 2140 904 . 98 257 954 86 . Robot Analysis Total . | . . . . . . . . . . . . . . . . Derelict Logs Recovered 3 | . . 2 . . . . . . . . . . . 1 . Drone Launches 14 | . . . . . . . . . 10 . . . 4 . . Drone Recoveries . | . . . . . . . . . . . . . . . . Exploration | -11 -10 -10 -10 -8 -8 -8 -8 -7 -6 -6 -6 -6 -5 -5 -5 ------------- Run | Yrd Mat Min Sub Mat Gar Mat Sto Fac Fac Was Fac DSF Fac Upp Upp Turns Passed 15929 | 55 949 743 399 3705 675 950 1029 2238 1595 230 137 257 1389 815 763 Spaces Moved 7667 | 79 583 435 219 1826 288 385 387 1026 599 167 82 88 550 464 489 Core 333 | 77 90 . . . . . . . . 115 . . . . 51 Treads 5708 | 2 194 435 219 1632 288 385 387 1024 599 52 82 88 302 19 . Legs 664 | . 299 . . 194 . . . 2 . . . . 139 29 1 Wheels 962 | . . . . . . . . . . . . . 109 416 437 Hover . | . . . . . . . . . . . . . . . . Flight . | . . . . . . . . . . . . . . . . Fastest Speed 50 | 50 50 160 160 152 155 160 160 152 160 50 160 160 120 120 50 Average Speed 152 | 52 122 160 160 165 159 160 160 159 160 84 160 160 153 145 136 Slowest Speed 260 | 160 200 160 160 240 160 160 162 260 160 160 160 160 260 240 145 Overloaded Moves . | . . . . . . . . . . . . . . . . Propulsion Burnouts . | . . . . . . . . . . . . . . . . Robots Hopped . | . . . . . . . . . . . . . . . . Potential Cave-ins . | . . . . . . . . . . . . . . . . Cave-ins Triggered . | . . . . . . . . . . . . . . . . Exploration Rate (%) 42 | 3 68 69 15 97 31 24 56 22 14 92 2 49 20 54 56 Regions Visited 15 Branch Regions 5 Pre-discovered Areas . | . . . . . . . . . . . . . . . . Known Exits Taken 2 | . . . . 1 . . . . . . 1 . . . . Unknown Exits Taken 9 | 1 1 1 1 . . 1 1 1 . . . . 1 1 . Scrap Searched 3 | . . 2 . . . . . . . . . . . 1 . Spaces Dug 44 | . 1 . 19 8 . 3 . 6 5 . . . 2 . . Terrain Destroyed 168 | . 1 . 102 8 . 4 . 6 5 . . . 30 9 3 Melee 22 | . 1 . . 7 . 3 . 6 5 . . . . . . Projectile 44 | . . . . 1 . 1 . . . . . . 30 9 3 AOE 102 | . . . 102 . . . . . . . . . . . . Terrain Rammed . | . . . . . . . . . . . . . . . . Walls Destroyed . | . . . . . . . . . . . . . . . . Machines Disabled . | . . . . . . . . . . . . . . . . Actions | -11 -10 -10 -10 -8 -8 -8 -8 -7 -6 -6 -6 -6 -5 -5 -5 --------- Run | Yrd Mat Min Sub Mat Gar Mat Sto Fac Fac Was Fac DSF Fac Upp Upp Total 10590 | 91 713 463 244 2276 465 626 642 1478 1119 220 87 156 911 533 566 Wait 1459 | . 28 7 1 150 128 136 92 293 386 17 . 12 168 7 34 Move 7654 | 78 582 434 218 1826 287 384 386 1025 599 166 81 87 549 463 489 Hop . | . . . . . . . . . . . . . . . . Pick Up 128 | 7 11 1 . 31 4 8 7 7 7 2 . 8 24 8 3 Fast Attach 103 | 3 7 . . 26 3 3 1 15 12 2 1 7 19 2 2 Attach 63 | 1 3 . 4 8 . 4 2 5 4 5 5 1 13 7 1 Detach 42 | . 2 . . 8 2 4 2 6 7 1 . 1 9 . . Swap 170 | . 12 2 1 35 2 19 23 21 20 2 . 5 17 7 4 Drop 159 | 2 13 2 . 50 6 14 7 15 17 3 . 6 15 4 5 Fire 639 | . 54 17 20 131 33 44 29 65 52 22 . 29 96 35 12 Melee 130 | . 1 . . 11 . 10 65 16 11 . . . . . 16 Ram . | . . . . . . . . . . . . . . . . Kick . | . . . . . . . . . . . . . . . . Crush . | . . . . . . . . . . . . . . . . Escape Stasis . | . . . . . . . . . . . . . . . . Rewire . | . . . . . . . . . . . . . . . . Trap 38 | . . . . . . . 28 10 . . . . . . . Miscellaneous 5 | . . . . . . . . . 4 . . . 1 . . Route ------- -11/Scrapyard -10/Materials (discovered 3 exits: [*Mat x2] / [*Min]) -10/Mines (discovered 2 exits: [*Mat] / [*Sub]) -10/Subcaves -8/Materials (discovered 6 exits: *Fac x3 / *Sto x2 / Gar) -8/Garrison (discovered 4 exits: *Mat x4) -8/Materials -8/Storage -7/Factory (discovered 2 exits: *Fac x2) -6/Factory (discovered 2 exits: *Fac / [*Low]) -6/Waste -6/Factory -6/DSF -5/Factory -5/Upper Caves -5/Upper Caves History --------- Turn | Location | Event 5 | -11/Scrapyard | Discovered new exit (range 15) 56 | -11/Scrapyard | Entered Materials 217 | -10/Materials | Discovered new exit (range 13) 312 | -10/Materials | Build established: Mutant 622 | -10/Materials | Build established: Scavenger-Mutant 776 | -10/Materials | Discovered new exit (range 16) 925 | -10/Materials | Discovered new exit (range 9) 1005 | -10/Materials | Entered Mines 1077 | -10/Mines | Learned Materials emergency access door positions 1186 | -10/Mines | Learned Materials emergency access door positions 1622 | -10/Mines | Core integrity fell below 50% 1675 | -10/Mines | Received a Rocket Launcher from a helpful Derelict 1711 | -10/Mines | Discovered new exit (range 11) 1721 | -10/Mines | Discovered new exit (range 15) 1748 | -10/Mines | Entered Subcaves 1749 | -10/Subcaves | Approached by a straggling Scientist 1879 | -10/Subcaves | Ambushed by Subdweller buried in earth 1885 | -10/Subcaves | Ambushed by Subdweller buried in earth 1932 | -10/Subcaves | Lost 3 parts (1p1n1w) 2029 | -10/Subcaves | Shifting Twisted Machinery released Sub. Monowheel 2091 | -10/Subcaves | Discovered new exit (range 12) 2147 | -10/Subcaves | Entered Materials 2147 | -8/Materials | Evolved 4 slots: Propulsion x2, Utility x2 2922 | -8/Materials | Discovered new exit (range 5) 3445 | -8/Materials | Discovered new exit (range 3) 4096 | -8/Materials | Discovered new exit (range 14) 4200 | -8/Materials | Discovered new exit (range 10) 4435 | -8/Materials | Central database locked down 4564 | -8/Materials | Build established: Mutant 4666 | -8/Materials | Discovered new exit (range 15) 5413 | -8/Materials | Core integrity fell below 50% 5697 | -8/Materials | Garrison activated, responded to threat 5786 | -8/Materials | Lost 3 parts (2n1u) 5852 | -8/Materials | Identified exit to Garrison 5852 | -8/Materials | Entered Garrison 5894 | -8/Garrison | Triggered checkpoint 5946 | -8/Garrison | Garrison Relay disabled 6039 | -8/Garrison | Core integrity fell below 20% 6202 | -8/Garrison | Installed Relay Interface Framework 6205 | -8/Garrison | Build established: Scavenger-Mutant 6416 | -8/Garrison | Triggered checkpoint 6493 | -8/Garrison | Discovered new exit (range 23) 6493 | -8/Garrison | Discovered new exit (range 55) 6493 | -8/Garrison | Discovered new exit (range 49) 6493 | -8/Garrison | Discovered new exit (range 32) 6527 | -8/Garrison | Entered Materials 6870 | -8/Materials | Repaired Imp. Heat Sink 7114 | -8/Materials | Discovered new exit (range 14) 7477 | -8/Materials | Entered Storage 7968 | -8/Storage | Found Prototype Launcher 7968 | -8/Storage | Identified Scatter Rocket Array 8485 | -8/Storage | Discovered new exit (range 14) 8506 | -8/Storage | Entered Factory 8506 | -7/Factory | Evolved 2 slots: Utility x2 8557 | -7/Factory | Discovered new exit (range 11) 8623 | -7/Factory | Build established: Mutant 9449 | -7/Factory | Lost 3 parts (1n1u1w) 9491 | -7/Factory | Build established: Scavenger-Mutant 10043 | -7/Factory | Repaired Lgt. Treads 10266 | -7/Factory | Discovered new exit (range 8) 10744 | -7/Factory | Entered another Factory area 10744 | -6/Factory | Evolved 2 slots: Power x1, Utility x1 10936 | -6/Factory | Discovered new exit (range 5) 10954 | -6/Factory | Identified exit to Factory 12005 | -6/Factory | Repaired Med. Treads 12230 | -6/Factory | Lost 5 allies 12327 | -6/Factory | Discovered new exit (range 15) 12339 | -6/Factory | Sucked down chute 12339 | -6/Factory | Entered Waste 12354 | -6/Waste | EMP discharged 12368 | -6/Waste | Spotted C-40 Crusher 12385 | -6/Waste | Destroyed C-40 Crusher 12443 | -6/Waste | Spotted C-40 Crusher 12452 | -6/Waste | Destroyed C-40 Crusher 12453 | -6/Waste | Spotted C-40 Crusher 12454 | -6/Waste | EMP discharged 12454 | -6/Waste | System corruption reached 10% 12459 | -6/Waste | Spotted C-40 Crusher 12467 | -6/Waste | Crushed by Compactor (1 part destroyed, 1 dropped) 12470 | -6/Waste | Crushed by Compactor (1 part destroyed) 12473 | -6/Waste | Crushed by Compactor (0 parts destroyed, 1 dropped) 12476 | -6/Waste | Crushed by Compactor (1 part destroyed, 2 dropped) 12482 | -6/Waste | Crushed by Compactor (1 part destroyed) 12490 | -6/Waste | Crushed by Compactor (0 parts destroyed, 1 dropped) 12497 | -6/Waste | Crushed by Compactor (0 parts destroyed, 1 dropped) 12499 | -6/Waste | Crushed by Compactor (0 parts destroyed, 1 dropped) 12500 | -6/Waste | Crushed by Compactor (1 part destroyed) 12531 | -6/Waste | Lost 6 parts (1p1n2u2w) 12535 | -6/Waste | Spotted C-40 Crusher 12554 | -6/Waste | EMP discharged 12554 | -6/Waste | Spotted C-40 Crusher 12562 | -6/Waste | Discovered new exit (range 14) 12569 | -6/Waste | Entered Factory 12706 | -6/Factory | Identified exit to DSF 12706 | -6/Factory | Entered DSF 12764 | -6/DSF | Build established: Hacker-Mutant 12765 | -6/DSF | Additional patrols routed to DSF 12770 | -6/DSF | Core integrity fell below 50% 12836 | -6/DSF | Discovered exit to Factory (range 15) 12917 | -6/DSF | Core integrity fell below 20% 12963 | -6/DSF | Entered Factory 12963 | -5/Factory | Evolved 2 slots: Propulsion x1, Utility x1 13290 | -5/Factory | Repaired Imp. Medium Treads 13447 | -5/Factory | Destroyed 7 combat bots 13690 | -5/Factory | Lost 6 parts (1p2n2u1w) 13817 | -5/Factory | Build established: Scavenger-Mutant 13914 | -5/Factory | Core integrity fell below 50% 13933 | -5/Factory | Lost 4 parts (1n2u1w) 14185 | -5/Factory | Discovered new exit (range 10) 14352 | -5/Factory | Entered Upper Caves 14558 | -5/Upper Caves | Attracted the attention of an 0b10 base 14638 | -5/Upper Caves | Destroyed 11 combat bots 14641 | -5/Upper Caves | Lost 9 parts (2p4n1u2w) 14738 | -5/Upper Caves | Learned location of 1 exit from Factory 14738 | -5/Upper Caves | Learned 8 Factory zone layouts 14741 | -5/Upper Caves | Learned Factory terminal intel 15144 | -5/Upper Caves | Discovered new exit (range 16) 15166 | -5/Upper Caves | Attracted the attention of an 0b10 checkpoint 15167 | -5/Upper Caves | Entered another Upper Caves area 15415 | -5/Upper Caves | Attracted the attention of an 0b10 checkpoint 15462 | -5/Upper Caves | Lost 3 parts (1n2u) 15830 | -5/Upper Caves | Spotted B-75 Beast 15843 | -5/Upper Caves | Core integrity fell below 20% 15882 | -5/Upper Caves | Lost 6 parts (2p3n1u) 15930 | -5/Upper Caves | Destroyed by B-75 Beast with Heavy Plasma Cannon Last Messages --------------- 15909_ Splicing B-75 Beast... Unable to locate active power source. 15910_ Splicing B-75 Beast... Rewriting IFF filter. 15918_ Sneak attack on B-75 Beast. 15918_ Splicing B-75 Beast... 15918_ B-75 Beast system unaffected. 15919_ Sneak attack on B-75 Beast. 15919_ Splicing B-75 Beast... 15919_ B-75 Beast system unaffected. 15919_ Sneak attack on B-75 Beast. 15919_ Splicing B-75 Beast... 15919_ B-75 Beast system unaffected. 15921_ Network quickbooting B-75 Beast, ETC: 9. 15924_ Sneak attack on B-75 Beast. 15924_ Splicing B-75 Beast... 15924_ B-75 Beast system inaccessible. 15929_ System corrupted: Matter fused (-7). 15930_ B-75 Beast reactivates. [Achievement: Achiever] Map ----- +----------------------------------------------------+ | ??????????????????????????## ##??# #????????? | | ??????????????????????????# #### ###??????? | | ??????????????????????????## # ##?????? | | ???????????????????????????# ## | | ???????????????????????????## ##### # | | ????????????????????????##### ##???#### ## | | ????????????????????????# #???????# #??? | | ????????????????????????## #?????### ##???? | | ???????????????????????### #?????# ##????? | | ????????????#???#?????## ###??## ##???? | | ???????????## ## ???## % #### ##??? | | ????????? ### % ## #??? | | ????????? ]] #### #??? | | ?????????# !] ##?# #??? | | ??????????# ! [ #### #??? | | ??????????## #?## #??? | | ??????????# ## #??# ##?? | | ????????? #?## #?## ##? | | ??????????? ###???###### #?# ## | | ??????????? ????????????## #?# # | | ???????????? ??????????????# #?# ### | | ???????????? ???????????###### ##?# ### | | ???????????????????????##;;## ##??# | | ??????????????????????##; ;; %###???### | | ????????????????????###;; ###???????# | | ????????????????????# BB@ ##?????????# | | ???????????????????# BB;;;###??????????## | | ??????????????????# #####?????????????# | | ?????????????????# #?????????????????## | | ????????????????# ????????????????## | | ???????????????# ?????????????????# # | | ???????????????# ?????????????????## ### ## | | ?????????????? ??????????????????# ##??## #? | | ????????????? ??????????????????## #????###? | | ????????????? ???????????????????# ###?????? | | ??????????????## ???????????????????# #?????? | | ???????????????##????????????????????# ######? | | ?????????????????????????????????????# ## | | ?????????????????????????????????????# ## | | ?????????????????????????????????????# # | | ?????????????????????????????????###??# | | ?????????????????????????????????# ##?# | | ?????????????????????????????????# ### # | | ?????????????????????????????????# ## ## | | ?????????????????????????????????# % ######? | | ????????????###??####????????????# ] ####???? | | ????????????# #### ##???????????# ##??? | | ????????????# #??????###??###### #??? | | ????????????# ##?????? #???????# ##??? | | ????????????# ######???# #???????## #???? | +----------------------------------------------------+ Best States ------------- Heat Dissipation 116 Coolant Potential 65 Energy Generation 34 Energy Capacity 535 Matter Stores 300 Matter Capacity 300 Sight Range 16 Robot Scan Range 15 Terrain Scan Density 10 ECM Strength 1 Jamming Range 12 Phase Shifting 5 Evasion (%) 55 Targeting Accuracy 10 Target Analysis 6 Core Analysis 6 Recoil Reduction 5 Energy Filtering 50 Offensive Hacking 10 Defensive Hacking 20 Relay Coupler Types 1 Relay Coupler Value 28 Item Schematics ----------------- Med. Treads | -8/Materials | Scanalyzed Hacking Suite | -8/Storage | Hacked Robot Schematics ------------------ None Fabricated ------------ Nothing Repaired ---------- Imp. Heat Sink | 60% | -8/Materials Lgt. Treads | 36% | -7/Factory Med. Treads | 29% | -6/Factory Imp. Medium Treads | 48% | -5/Factory Studied --------- Flak Cannon | -8/Materials | Hacked Alien Tech Used ----------------- None Achievements -------------- Achiever Do Not Disturb Error 47 Challenges ------------ None Game ------ Seed ZeronetSmallWarhead Manual? 0 Play Time 03:54:22 Cumulative 118.0 hours Start 2025.11.18 @ 00:37:46 End 2025.11.18 @ 17:32:37 Sessions 2 Manual Loads 0 Difficulty Rogue Special Mode None Game No. 60 Rogue 60 Adventurer 0 Explorer 0 Win Type - Total 0 Types 0/0/0/0/0/0/0/0/0/0 Lore% 18 Gallery% 33 Achievement% 25 Wizard Run 0 Options --------- Layout 2 ASCII 1 Keyboard 1 Movement Vi Keybinds 0 Fullscreen 2 Font 32/Terminus Map View 50x44 Zoom Use 0% Tactical HUD 1 Map Filters NONE Filters NONE Steam 1 RUN: 5b18a88f-5c7e-483a-acd4-df2939534274